[Event "Israeli Team-ch 2023"]
[Site "Petah Tikva"]
[Date "2023.01.13"]
[Round "2.5"]
[White "Steiner-Prozhanski, Giora"]
[Black "Steinberg, Nitzan"]
[Result "0-1"]
[ECO "D45"]
[WhiteElo "2254"]
[BlackElo "2537"]
[Annotator "TA"]
[PlyCount "60"]
[EventDate "2023.01.13"]
[EventCountry "ISR"]
[SourceTitle "playchess.com"]
[Source "ChessBase"]
[SourceQuality "1"]
[TimeControl "40/5400+30:1800+30"]

{[%evp 26,60,0,7,0,-10,0,-33,0,0,-23,-23,0,-89,-76,-78,-37,-258,-262,-330,-342,-329,-348,-318,-327,-345,-322,-447,-431,-701,-677,-692,-672,-647,-543,-515,-490]} 1. d4 {[%emt 0:00:07]} d5 {[%emt 0:00:25]} 2. c4 {[%emt 0:00:04]} c6 {[%emt 0:01:34]} 3. Nc3 {[%emt 0:00:03]} Nf6 {[%emt 0:00:05]} 4. e3 {[%emt 0:00:04]} e6 {[%emt 0:00:45]} 5. Nf3 {[%emt 0:00:06]} Nbd7 {[%emt 0:00:06]} 6. Qc2 {[%emt 0:00:20]} Bd6 {[%emt 0:00:09]} 7. b3 {[%emt 0:00:03]} O-O {[%emt 0:00:00]} 8. Be2 {[%emt 0:00:12]} Qe7 {[%emt 0:05:10]} 9. O-O {[%emt 0:00:24]} Re8 {[%emt 0:01:04]} 10. Bb2 {[%emt 0:00:23]} b6 {[%emt 0:00:48]} 11. Rad1 {[%emt 0:04:15]} Bb7 {[%emt 0:00:09]} 12. e4 {[%emt 0:00:07]} dxe4 {[%emt 0:07:56]} 13. Nxe4 {[%emt 0:00:21]} Nxe4 {[%emt 0:01:28]} 14. Qxe4 {[%emt 0:00:05]} Nf8 {[%emt 0:00:17][%cal Bd7f8,Bf8g6,Bg6f4][%mdl 32] D45: Semi-Slav: 5 e3.} 15. Qe3 {[%emt 0:19:47]} Rad8 {[%emt 0:10:27] [#]} 16. a3 $146 {[%emt 0:05:48]} ({Predecessor:} 16. Rd3 c5 17. Rfd1 cxd4 18. Nxd4 Qh4 19. g3 Qe4 20. Bf3 Qxe3 21. fxe3 Bxf3 22. Nxf3 {½-½ Vechet,S (2166)-Muratidis,N (2163) CZE-chT1E 1516 2015 (5.6)}) 16... Ng6 {[%emt 0:06:54] Black is slightly better.} 17. Rfe1 {[%emt 0:10:06]} c5 {[%emt 0:09:46]} 18. dxc5 {[%emt 0:02:40]} bxc5 {[%emt 0:01:26]} 19. Qc3 {[%emt 0:08:53]} (19. Bd3 $11 {keeps the balance.}) 19... e5 $17 {[%emt 0:04:05][%cal Be6e5,Be5e4][%mdl 32]} 20. Nd2 {[%emt 0:09:25]} f5 {[%emt 0:04:15] Inhibits Bg4. Threatens to win with ...e4.} (20... Qg5 $6 21. Bf3 Bxf3 22. Qxf3 $11 (22. Nxf3 Qf5 $15)) 21. Nf1 $2 {[%emt 0:09:03] White does not recover from this.} (21. Bh5 $1 $15) 21... Nf4 $19 {[%emt 0:07:49]} ({Weaker is} 21... Qg5 22. Bf3 Bxf3 23. Qxf3 $15) 22. Bf3 {[%emt 0:11:25]} e4 {[%emt 0:12:01] White must now prevent ...Qg5.} 23. Ng3 {[%emt 0:00:02][%cal Od1d6]} Qg5 {[%emt 0:06:02]} 24. h4 {[%emt 0:04:21]} Qg6 {[%emt 0:01:05]} (24... Qxh4 $2 25. Qxg7#) 25. h5 {[%emt 0:10:35]} Qg5 {[%emt 0:01:15]} 26. Rxd6 {[%emt 0:01:43]} Rxd6 {[%emt 0:00:18] Black is clearly winning.} 27. Bc1 {[%emt 0:02:15]} (27. Nxf5 $142 Rde6 28. Qxg7+ Qxg7 29. Nxg7 exf3 30. Nxe6 fxg2 31. Kh2) 27... Ree6 {[%emt 0:07:31]} 28. Bd1 {[%emt 0:01:09] [#]} e3 $1 {[%emt 0:00:16]} 29. Bxe3 {[%emt 0:00:32] [#]} Rxd1 {[%emt 0:00:12][%mdl 576] Remove Defender} 30. Rxd1 {[%emt 0:00:33] [#]} Ne2+ $1 {[%emt 0:00:05][%mdl 576] Double Attack.   Weighted Error Value: White=0.62/Black=0.16 (very precise)} 0-1

[Event "Israeli Team-ch 2023"]
[Site "Petah Tikva"]
[Date "2023.01.13"]
[Round "2.6"]
[White "Kobo, Ori"]
[Black "Poleg, Dan"]
[Result "1-0"]
[ECO "C60"]
[WhiteElo "2546"]
[BlackElo "2193"]
[Annotator "TA"]
[PlyCount "59"]
[EventDate "2023.01.13"]
[EventCountry "ISR"]
[SourceTitle "playchess.com"]
[Source "ChessBase"]
[SourceQuality "1"]
[TimeControl "40/5400+30:1800+30"]

{[%evp 9,59,37,41,26,39,42,27,23,32,11,83,68,98,92,115,65,64,52,66,70,70,64,40,31,43,34,48,47,60,33,80,70,61,0,7,0,0,-468,0,0,0,0,0,-136,0,0,627,594,670,643,625,593]} 1. e4 {[%emt 0:00:13]} e5 {[%emt 0:00:22]} 2. Nf3 {[%emt 0:00:18]} Nc6 {[%emt 0:00:08]} 3. Bb5 {[%emt 0:00:26]} g6 {[%emt 0:00:23]} 4. c3 {[%emt 0:00:22]} Bg7 {[%emt 0:00:13]} 5. d4 {[%emt 0:00:18]} exd4 {[%emt 0:00:08]} 6. cxd4 {[%emt 0:00:07] C60: Ruy Lopez: Unusual Black 3rd moves and 3...g6.} a6 {[%emt 0:00:20]} 7. Bc4 {[%emt 0:00:12]} b5 {[%emt 0:00:07]} 8. Be2 {[%emt 0:00:06] White has an edge.} d5 {[%emt 0:06:12]} 9. e5 {[%emt 0:00:42] [#]} h6 $146 {[%emt 0:02:42]} (9... f6 $11) ({Predecessor:} 9... Nge7 10. Nbd2 O-O 11. Nb3 f6 12. exf6 Bxf6 13. O-O Nf5 14. Bf4 g5 15. Rc1 gxf4 16. Rxc6 {½-½ Shyam,N (2457)-Ter Sahakyan,S (2632) Abu Dhabi op 26th 2019 (5)}) 10. a4 {[%emt 0:02:07]} b4 {[%emt 0:05:35]} 11. Nbd2 {[%emt 0:03:27]} Nge7 {[%emt 0:00:16]} 12. a5 {[%emt 0:08:07]} (12. Nb3 $16) 12... O-O $14 {[%emt 0:01:54]} 13. Nb3 {[%emt 0:00:55]} f6 {[%emt 0:04:03]} 14. exf6 {[%emt 0:02:16]} Rxf6 {[%emt 0:00:09]} 15. O-O {[%emt 0:01:02]} Qd6 {[%emt 0:02:33] Repels Ne5} 16. Bd2 {[%emt 0:17:08]} Rf7 {[%emt 0:11:24]} 17. Rc1 {[%emt 0:07:30]} g5 {[%emt 0:06:02]} 18. h3 {[%emt 0:15:02]} Nf5 {[%emt 0:06:52][%cal Rf5d4]} 19. Be3 {[%emt 0:05:46]} (19. Re1 $5 {[%cal Rf3e5]}) 19... Nxe3 {[%emt 0:06:23]} (19... Bd7 $14) 20. fxe3 $16 {[%emt 0:00:04]} Ne7 {[%emt 0:00:10][%cal Oc8h3]} 21. Nc5 {[%emt 0:11:11]} (21. Qe1 $14) 21... Nf5 {[%emt 0:02:05]} (21... Bxh3 $5 {[%cal Rd6g3]} 22. Ne5 (22. gxh3 Qg3+ 23. Kh1 Nf5 $15) 22... Bxe5 23. dxe5 Qxe5 24. Rxf7 (24. gxh3 $2 Qg3+ 25. Kh1 Qxh3+ 26. Kg1 Qxe3+ 27. Kh2 Qe5+ 28. Kh3 Rxf1 $19) 24... Kxf7 $11) 22. e4 {[%emt 0:00:25]} (22. Qd2 {simplifies} Re7 23. Ne5 Bxe5 24. dxe5 Qxe5 25. Bf3) 22... Ne3 {[%emt 0:01:38][%csl LRd1,LRf1][%mdl 64] [#] Hoping for ...Qg3. Deflection} 23. Qb3 $2 {[%emt 0:00:05][%mdl 8192]} (23. e5 $1 $11 {and White stays safe.} Nxd1 24. exd6 Nxb2 25. dxc7 Rxc7 26. Ne5 Bxe5 27. dxe5) 23... Nxf1 $2 {[%emt 0:00:54]} (23... Qf4 $19 24. Rf2 Bxh3) 24. e5 $11 {[%emt 0:00:07] The board is on fire.} Qd8 {[%emt 0:16:36] ...Ng3 is the strong threat.} 25. Rxf1 {[%emt 0:00:18]} g4 {[%emt 0:01:47]} 26. e6 {[%emt 0:03:01] [#]} (26. hxg4 $11 Bf8 27. Qa4) 26... Rxf3 {[%emt 0:06:15]} ({Better is} 26... Bxe6 $1 $17 27. Nxe6 Qd6 28. Nxg7 (28. hxg4 $2 {is the wrong capture.} Qxe6 29. Bd3 Bxd4+ 30. Kh1 Bc5 $19) 28... gxf3 29. Bxf3 Kxg7) 27. Bxf3 {[%emt 0:02:34]} c6 $2 {[%emt 0:04:15][%mdl 8192] Black is weak on the light squares} (27... gxf3 $11 28. Qxf3 Qe8) 28. Bxg4 $18 {[%emt 0:03:28] White is clearly winning.} Bxd4+ {[%emt 0:00:37]} 29. Kh1 {[%emt 0:00:32][%cal Ob3d3] aiming for Qd3!} Bxc5 {[%emt 0:00:05]} 30. Qc2 {[%emt 0:01:05] Weighted Error Value: White=0.37/Black=0.58} 1-0

[Event "Israeli Team-ch 2023"]
[Site "Petah Tikva"]
[Date "2023.01.13"]
[Round "2.7"]
[White "Dvoirys, Semen I."]
[Black "Sutovsky, Emil"]
[Result "1-0"]
[ECO "B66"]
[WhiteElo "2465"]
[BlackElo "2615"]
[Annotator "TA"]
[PlyCount "97"]
[EventDate "2023.01.13"]
[EventCountry "ISR"]
[SourceTitle "playchess.com"]
[Source "ChessBase"]
[SourceQuality "1"]
[TimeControl "40/5400+30:1800+30"]

{[%evp 16,97,42,47,103,96,102,97,85,93,100,74,69,66,112,112,122,116,137,134,137,137,148,144,230,210,222,223,373,389,379,387,388,387,382,383,377,340,338,335,322,341,327,341,345,318,331,315,348,353,345,338,339,302,343,335,336,331,335,322,324,311,295,326,420,404,464,438,397,385,593,604,623,622,606,612,586,556,627,612,708,639,640,636]} 1. e4 {[%emt 0:00:03]} c5 {[%emt 0:00:03]} 2. Nf3 {[%emt 0:00:06]} d6 {[%emt 0:00:05]} 3. d4 {[%emt 0:00:06]} cxd4 {[%emt 0:00:04]} 4. Nxd4 {[%emt 0:00:05]} Nf6 {[%emt 0:00:03]} 5. Nc3 {[%emt 0:00:04]} Nc6 {[%emt 0:00:05]} 6. Bg5 {[%emt 0:00:18]} e6 {[%emt 0:00:14]} 7. Qd2 {[%emt 0:00:07]} a6 {[%emt 0:03:14]} 8. O-O-O {[%emt 0:00:06][%cal Ba1d1,Bd1d6,Bd6c6,Bc6c7][%mdl 32]} Be7 {[%emt 0:00:19]} 9. Bxf6 {[%emt 0:08:50]} Bxf6 {[%emt 0:01:25] B66: Sicilian: Richter-Rauzer: 7...a6 8 0-0-0 h6.} (9... gxf6 $14 10. Be2 Qb6) 10. Nxc6 $16 {[%emt 0:00:18][%mdl 64] Discovered Attack} bxc6 {[%emt 0:00:18]} 11. Qxd6 {[%emt 0:00:08]} Qxd6 {[%emt 0:06:36] White is better.} 12. Rxd6 {[%emt 0:00:05] [#]} c5 $146 {[%emt 0:00:20] Black is weak on the light squares} ({Predecessor:} 12... Bd7 13. Ne2 Rb8 14. c3 a5 15. Nd4 c5 16. Nc6 Rc8 17. Nxa5 Ra8 18. Nc4 Be7 {1-0 Costabile,A (1071)-Vachtsevanos,G GRE-ch Online Blitz op 1st 2021 (7)}) 13. Na4 {[%emt 0:10:44] White is more active.} Ke7 {[%emt 0:02:47]} 14. Rc6 {[%emt 0:11:47] Rc7+ would be deadly.} Rd8 {[%emt 0:38:01] [#] Black is on the road to losing.} (14... Bd7 $14 15. Rc7 Kd6 16. Rxd7+ Kxd7) 15. Rc7+ $1 {[%emt 0:05:07]} (15. Nxc5 $2 Bg5+ 16. f4 Bxf4+ 17. Kb1 Rd1#) (15. Rxc5 $6 Bd4 $11) 15... Ke8 {[%emt 0:20:58] ( -> ...Bg5+)} 16. Bd3 {[%emt 0:00:40]} (16. Nxc5 $2 Bg5+ 17. f4 Bxf4+ 18. Kb1 Rd1#) (16. Rxc5 Bd4 $14) 16... Be5 {[%emt 0:03:53]} 17. Rxc5 {[%emt 0:01:14]} Bd4 {[%emt 0:00:03]} 18. Rh5 {[%emt 0:01:07]} h6 {[%emt 0:02:51]} 19. Rf1 {[%emt 0:01:51]} e5 {[%emt 0:01:58]} (19... Ke7 $16 20. Ra5 Rb8) 20. c3 $18 {[%emt 0:03:06]} Bg4 {[%emt 0:00:09]} 21. Rh4 {[%emt 0:00:38]} h5 {[%emt 0:04:00]} (21... Bd7 $142) 22. cxd4 {[%emt 0:02:23]} Rxd4 {[%emt 0:02:14]} 23. Bc2 {[%emt 0:00:17]} g5 {[%emt 0:00:15] [#]} 24. Rxg4 {[%emt 0:00:34]} hxg4 {[%emt 0:00:02]} 25. Nc3 {[%emt 0:00:36]} Rc8 {[%emt 0:00:35]} 26. Re1 {[%emt 0:03:51]} Rc6 {[%emt 0:00:38]} 27. Bd1 {[%emt 0:02:43]} Rh6 {[%emt 0:01:40]} 28. Rh1 {[%emt 0:01:14]} (28. Bxg4 Rxh2 29. Rg1 Rh6) 28... Rf6 {[%emt 0:00:43]} 29. Rf1 {[%emt 0:00:15]} ({Resist} 29. Bxg4 $6 Rxf2 30. Bf3 g4 $18) 29... Rh6 {[%emt 0:00:15]} 30. Bxg4 {[%emt 0:00:48]} Rxh2 {[%emt 0:00:02]} 31. Bh3 {[%emt 0:03:31]} g4 {[%emt 0:04:09]} 32. Bxg4 {[%emt 0:00:07] Hoping for Bh3.} Rxg2 {[%emt 0:00:02]} 33. Be2 {[%emt 0:07:22]} a5 {[%emt 0:02:08]} 34. f3 {[%emt 0:00:26]} Kf8 {[%emt 0:00:47]} 35. f4 {[%emt 0:04:40]} exf4 {[%emt 0:01:38]} 36. Rxf4 {[%emt 0:00:05]} Rg5 {[%emt 0:00:38]} 37. Kc2 {[%emt 0:01:07]} Ke7 {[%emt 0:00:34]} 38. Rh4 {[%emt 0:05:09]} f5 {[%emt 0:02:58]} 39. Rh7+ {[%emt 0:01:12]} Kf6 {[%emt 0:01:40]} 40. exf5 {[%emt 0:00:12]} ({Weaker is} 40. Nd5+ Ke5 41. Ra7 (41. Re7+ Kd6 $16) 41... fxe4 $18) 40... Rxf5 {[%emt 0:00:05]} 41. Ra7 {[%emt 0:31:25]} Rb4 {[%emt 0:03:25]} 42. a3 {[%emt 0:00:00]} Rb6 {[%emt 0:01:50]} (42... Rh4 {was worth a try.} 43. Kb3 Ke6) 43. Ne4+ {[%emt 0:00:00] White is clearly winning.} Kg6 {[%emt 0:00:32]} 44. Bd3 {[%emt 0:00:00] Ng3 is the strong threat.} Kh6 {[%emt 0:02:05]} 45. Nd2 {[%emt 0:00:00]} Rc5+ {[%emt 0:03:47]} 46. Nc4 {[%emt 0:00:00]} Rbb5 {[%emt 0:01:28]} 47. Kc3 {[%emt 0:00:00]} Rd5 {[%emt 0:02:00]} 48. a4 {[%emt 0:00:00]} Rbc5 {[%emt 0:00:33]} 49. Be4 {[%emt 0:00:00] Weighted Error Value: White=0.03 (flawless) /Black=0.29 (precise)} 1-0

[Event "Israeli Team-ch 2023"]
[Site "Petah Tikva"]
[Date "2023.01.13"]
[Round "2.8"]
[White "Smirin, Ilia"]
[Black "Greenfeld, Alon"]
[Result "1-0"]
[ECO "B63"]
[WhiteElo "2596"]
[BlackElo "2460"]
[Annotator "TA"]
[PlyCount "83"]
[EventDate "2023.01.13"]
[EventCountry "ISR"]
[SourceTitle "playchess.com"]
[Source "ChessBase"]
[SourceQuality "1"]
[TimeControl "40/5400+30:1800+30"]

{[%evp 23,83,0,-13,-6,3,1,13,-17,-10,0,0,-6,-4,-15,-13,-25,-26,-34,-38,-43,0,0,0,0,0,-31,-20,-37,0,0,0,-8,-7,-23,-43,-53,0,0,0,0,0,0,0,0,0,0,0,0,0,0,0,0,0,0,142,143,415,408,570,565,519,489]} 1. e4 {[%emt 0:00:29]} c5 {[%emt 0:00:30]} 2. Nf3 {[%emt 0:00:06]} d6 {[%emt 0:00:10]} 3. d4 {[%emt 0:00:38]} cxd4 {[%emt 0:00:20]} 4. Nxd4 {[%emt 0:00:17]} Nf6 {[%emt 0:00:10]} 5. Nc3 {[%emt 0:00:16]} Nc6 {[%emt 0:00:29]} 6. Bg5 {[%emt 0:00:08]} e6 {[%emt 0:03:29]} 7. Qd2 {[%emt 0:00:23]} a6 {[%emt 0:01:27]} 8. O-O-O {[%emt 0:01:00]} Be7 {[%emt 0:00:37]} 9. f3 {[%emt 0:03:32]} Nxd4 {[%emt 0:01:49]} 10. Qxd4 {[%emt 0:00:08]} O-O {[%emt 0:00:27]} 11. h4 {[%emt 0:03:12]} b5 {[%emt 0:01:40]} 12. Kb1 {[%emt 0:00:56]} Bb7 {[%emt 0:00:15]} 13. Qd2 {[%emt 0:03:06] 13.g4 is more fashionable. B63: Sicilian: Richter-Rauzer: 7...Be7 and unusual Black 7th moves.} Rc8 {[%emt 0:00:42]} 14. Bd3 {[%emt 0:01:22]} Nd7 {[%emt 0:00:51]} 15. Ne2 {[%emt 0:04:38] The position is equal.} Ne5 {[%emt 0:06:44] [#]} 16. Qe3 $146 {[%emt 0:12:44]} ({Predecessor:} 16. Rhe1 Qc7 17. Nd4 Rfd8 18. f4 Nc4 19. Bxc4 bxc4 20. Qc3 h6 21. Bxe7 Qxe7 22. g4 Qxh4 {0-1 Nabaty,T (2584)-Durarbayli,V (2515) Wch U20 50th 2011 (8)}) 16... Re8 {[%emt 0:06:41]} 17. Bxe7 {[%emt 0:06:10]} Qxe7 {[%emt 0:16:14]} 18. Nf4 {[%emt 0:01:36]} Rc5 {[%emt 0:08:27]} 19. Be2 {[%emt 0:03:33]} Rec8 {[%emt 0:17:54]} 20. Rd2 {[%emt 0:05:16]} Qc7 {[%emt 0:04:36][%cal Rc5c2]} 21. Rc1 {[%emt 0:00:22]} Nc4 {[%emt 0:06:50]} 22. Bxc4 {[%emt 0:00:11]} Rxc4 {[%emt 0:00:03][%cal Bc5c4,Bc4h4,Bh4h6,Bh6g6,Bg6g2][%mdl 32]} 23. Ne2 {[%emt 0:10:20]} d5 {[%emt 0:03:12][%cal Rd5e4]} 24. e5 {[%emt 0:00:47]} Rxh4 {[%emt 0:02:37]} 25. Nd4 {[%emt 0:01:53]} Rf8 {[%emt 0:03:45]} 26. f4 {[%emt 0:12:56]} Bc8 {[%emt 0:02:57]} 27. Rd3 {[%emt 0:15:21][%cal Bd2d3,Bd3c3,Bc3c6,Bc6a6][%mdl 32]} Bd7 {[%emt 0:01:49]} 28. Qf2 {[%emt 0:03:18]} Rh6 {[%emt 0:00:46]} 29. Nf3 {[%emt 0:00:03]} f6 {[%emt 0:02:34]} ({Better is} 29... a5 $15) 30. Rc3 $11 {[%emt 0:00:54]} Qb8 {[%emt 0:00:20]} 31. Qd4 {[%emt 0:01:30]} Rg6 {[%emt 0:02:24]} 32. exf6 {[%emt 0:01:10]} gxf6 {[%emt 0:01:03]} 33. f5 {[%emt 0:00:24]} Rxg2 {[%emt 0:02:22]} 34. fxe6 {[%emt 0:01:30]} Bxe6 {[%emt 0:00:03]} 35. Rc6 {[%emt 0:00:15][%csl LRa6,LRe6] Inhibits Qd6.} Rg4 {[%emt 0:00:49]} 36. Rg1 {[%emt 0:00:43]} Rxg1+ {[%emt 0:00:36]} 37. Qxg1+ {[%emt 0:00:04]} Kf7 {[%emt 0:00:07]} 38. Rxa6 {[%emt 0:00:25] [#] Strongly threatening Ra7+.} d4 {[%emt 0:01:54]} 39. Nxd4 $16 {[%emt 0:02:12] White is more active.} ({Not} 39. Qxd4 Rd8 40. Qg1 Qg3 41. Ra7+ (41. Qxg3 $2 Rd1#) (41. Qh1 Qh3 $17) 41... Ke8 $17) 39... Rg8 $2 {[%emt 0:00:39][%mdl 8192]} (39... Bd7 $16) 40. Qh1 $18 {[%emt 0:01:14]} Bc8 {[%emt 0:01:17]} 41. Qxh7+ {[%emt 0:14:14]} Rg7 {[%emt 0:01:48]} 42. Qh5+ {[%emt 0:00:15] Weighted Error Value: White=0.04 (flawless) /Black=0.38} 1-0

[Event "Israeli Team-ch 2023"]
[Site "Petah Tikva"]
[Date "2023.01.13"]
[Round "2.9"]
[White "Vydeslaver, Alik"]
[Black "Alekseev, Evgeny"]
[Result "1/2-1/2"]
[ECO "B40"]
[WhiteElo "2385"]
[BlackElo "2575"]
[Annotator "TA"]
[PlyCount "61"]
[EventDate "2023.01.13"]
[EventCountry "ISR"]
[SourceTitle "playchess.com"]
[Source "ChessBase"]
[SourceQuality "1"]
[TimeControl "40/5400+30:1800+30"]

{[%evp 9,61,16,33,52,39,18,17,20,18,21,39,10,8,16,18,10,14,16,22,0,0,0,0,0,16,0,0,0,0,-14,0,0,0,0,0,0,0,0,0,0,0,0,0,0,0,0,0,0,0,0,0,0,0,0]} 1. e4 {[%emt 0:00:12]} c5 {[%emt 0:00:10]} 2. Nf3 {[%emt 0:00:16]} e6 {[%emt 0:01:07]} 3. Nc3 {[%emt 0:00:57]} a6 {[%emt 0:06:47]} 4. g3 {[%emt 0:00:59]} Nc6 {[%emt 0:02:34]} 5. Bg2 {[%emt 0:00:10]} b5 {[%emt 0:03:06]} 6. O-O {[%emt 0:00:32] B40: Sicilian: 2...e6, Unusual lines.} Bb7 {[%emt 0:00:14]} 7. d4 {[%emt 0:08:32]} cxd4 {[%emt 0:05:08]} 8. Nxd4 {[%emt 0:00:08]} Nxd4 {[%emt 0:00:26]} 9. Qxd4 {[%emt 0:00:03]} Ne7 {[%emt 0:00:09]} 10. b3 {[%emt 0:26:35]} (10. a4 $5 {[%cal Ra4b5]}) 10... Nc6 {[%emt 0:05:26] The position is equal.} 11. Qe3 {[%emt 0:00:31]} d6 {[%emt 0:21:53]} 12. Bb2 {[%emt 0:09:02]} Be7 {[%emt 0:02:00] [#]} 13. Rfd1 $146 {[%emt 0:06:18][%cal Oe4e5]} ({Predecessor:} 13. Ne2 O-O 14. Rfd1 Qc7 15. Rac1 Rfc8 16. h4 Ne5 17. Nd4 Qc5 18. Qe2 Bf6 19. Kh2 {0-1 Rodi,L (2357)-Lima,D (2502) Joao Pessoa 2009 (5)}) 13... O-O {[%emt 0:06:01]} 14. e5 {[%emt 0:07:43]} d5 {[%emt 0:00:54]} 15. Ne4 {[%emt 0:00:29][%cal Oc2c4]} Qc7 {[%emt 0:12:50]} 16. Nd6 {[%emt 0:01:56]} Rab8 {[%emt 0:07:39]} 17. a4 {[%emt 0:04:17]} b4 {[%emt 0:02:17]} 18. Nxb7 {[%emt 0:06:28]} Qxb7 {[%emt 0:03:50]} 19. Bf1 {[%emt 0:01:32]} Rfc8 {[%emt 0:01:12]} 20. Rac1 {[%emt 0:00:59]} Bd8 {[%emt 0:02:19]} 21. h4 {[%emt 0:01:31]} Bb6 {[%emt 0:00:31]} 22. Qf4 {[%emt 0:00:05]} a5 {[%emt 0:02:10]} 23. Bb5 {[%emt 0:02:18]} Qe7 {[%emt 0:01:23]} 24. Rd2 {[%emt 0:00:58]} Rc7 {[%emt 0:01:42]} 25. Re1 {[%emt 0:00:04]} Nd8 {[%emt 0:00:42][%cal Bc6d8,Bd8b7,Bb7c5][%mdl 32]} 26. Kg2 {[%emt 0:00:40]} Nb7 {[%emt 0:00:29]} 27. f3 {[%emt 0:02:20]} Nc5 {[%emt 0:01:00]} 28. Ree2 {[%emt 0:01:26]} Rbc8 {[%emt 0:01:52]} 29. Qg4 {[%emt 0:00:45]} Rb8 {[%emt 0:01:06]} 30. Qf4 {[%emt 0:00:04]} Rbc8 {[%emt 0:00:35]} 31. Qg4 {[%emt 0:00:05] Weighted Error Value: White=0.04 (flawless) /Black=0.02 (flawless)} 1/2-1/2